bitfinex/quotes_SOLUSD_20250803
["timestamp","ask_amount","ask_price","bid_price","bid_amount"]
[1754250222696,11.29984798,162.45,162.44,0.06]
[1754250223193,11.24824768,162.45,162.44,0.06]
[1754250223407,11.29849235,162.45,162.44,0.06]
[1754250231313,15.45146567,162.45,162.44,0.06]
[1754250231933,15.48146567,162.45,162.44,0.06]
[1754250232841,15.431221,162.45,162.44,0.06]
[1754250233139,15.48207571,162.45,162.44,0.06]
[1754250234023,15.48794034,162.45,162.44,0.06]
[1754250234622,18.84400844,162.45,162.44,0.06]
[1754250234831,35.62869241,162.45,162.44,0.06]
[1754250238044,42.78468397,162.43,162.42,0.06]
[1754250238233,51.54857294,162.43,162.42,0.06]
[1754250238430,61.60841789,162.43,162.42,0.06]
[1754250238748,52.29915313,162.43,162.42,0.06]
[1754250239045,61.60841789,162.43,162.42,0.06]
[1754250241636,61.60141151,162.43,162.42,0.06]
[1754250244754,61.5983689,162.43,162.42,0.06]
[1754250247535,61.59616359,162.43,162.42,0.06]
[1754250249635,51.58689883,162.43,162.42,0.06]
[1754250249856,30.74319027,162.43,162.42,0.06]
[1754250250564,31.44319027,162.43,162.42,0.06]
[1754250250740,35.5809477,162.43,162.42,0.06]
[1754250252435,35.53036751,162.43,162.42,0.06]
[1754250252841,35.58107123,162.43,162.42,0.06]
[1754250254362,35.53036751,162.43,162.42,0.06]
[1754250254545,35.58107123,162.43,162.42,0.06]
[1754250256765,16.78468397,162.42,162.35,0.2]
[1754250256946,5.95940444,162.36,162.35,0.2]
[1754250257146,10.55806579,162.36,162.35,0.2]
[1754250257345,10.60871393,162.36,162.35,0.2]
[1754250259037,10.60622859,162.36,162.35,0.2]
[1754250259568,10.55558045,162.36,162.35,0.2]
[1754250260757,4.59617601,162.36,162.35,0.2]
[1754250260961,4.59617601,162.36,162.35,6.15940444]
[1754250261365,5.95940444,162.39,162.35,0.2]
[1754250261576,4.59433663,162.38,162.35,0.2]
[1754250261866,4.59417018,162.37,162.35,0.2]
[1754250262036,5.95940444,162.39,162.35,0.2]
[1754250262239,4.59416935,162.38,162.35,0.2]
[1754250262472,5.95940444,162.38,162.35,0.2]
[1754250262782,9.3120895,162.38,162.35,0.2]
[1754250263362,10.0020895,162.38,162.35,0.2]
[1754250263863,0.69,162.38,162.35,0.2]
[1754250264260,10.0020895,162.38,162.35,0.2]
[1754250264472,42.78468397,162.36,162.35,0.2]
[1754250264640,26.0,162.34,162.33,0.2]
[1754250264843,56.23454139,162.34,162.33,0.2]
[1754250265043,56.92454139,162.34,162.33,0.2]
[1754250265252,69.04335039,162.34,162.33,0.2]
[1754250266658,59.73126089,162.34,162.33,0.2]
[1754250266959,69.04335039,162.34,162.33,0.2]
[1754250267348,47.61245189,162.34,162.33,0.2]
[1754250267572,46.92245189,162.34,162.33,0.2]
[1754250267757,52.09677347,162.34,162.33,0.2]
[1754250268266,52.78677347,162.34,162.33,0.2]
[1754250268665,42.78468397,162.34,162.33,0.2]
[1754250268975,9.3120895,162.35,162.33,0.2]
[1754250269166,9.3120895,162.35,162.33,0.4]
[1754250269368,9.3120895,162.34,162.33,0.2]
[1754250269557,9.3120895,162.35,162.33,0.2]
[1754250270670,0.69,162.38,162.33,0.4]
[1754250270886,9.3120895,162.36,162.33,0.2]
[1754250271050,9.3120895,162.34,162.33,0.2]
[1754250271677,10.0020895,162.34,162.33,0.2]
[1754250272281,26.78677347,162.34,162.33,0.2]
[1754250274491,52.78677347,162.34,162.33,0.2]
[1754250275081,55.25796847,162.34,162.33,0.2]
[1754250276683,52.78677347,162.34,162.33,0.2]
[1754250277759,52.78677347,162.34,162.31,0.06]
[1754250277760,16.78468397,162.33,162.31,0.06]
[1754250278087,26.09677347,162.32,162.31,0.06]
[1754250278453,36.09886297,162.32,162.31,0.06]
[1754250278757,16.78468397,162.31,162.27,43.4]
[1754250279074,9.3120895,162.28,162.27,43.4]
[1754250279776,9.3120895,162.28,162.27,43.6]
[1754250282988,9.3120895,162.28,162.27,43.4]
[1754250287577,9.3120895,162.28,162.27,43.6]
[1754250289174,9.3120895,162.28,162.27,43.4]
[1754250291781,10.0120895,162.28,162.24,43.4]
[1754250291982,9.3120895,162.25,162.24,43.4]
[1754250295486,0.7,162.25,162.19,44.42]
[1754250295795,9.3120895,162.2,162.19,44.42]
[1754250295996,9.3120895,162.2,162.19,88.04]
[1754250296193,0.7,162.25,162.19,88.04]
[1754250296383,9.3120895,162.2,162.19,88.04]
[1754250297276,9.3120895,162.2,162.19,87.84]
[1754250297685,0.7,162.23,162.19,87.84]
[1754250297887,9.3120895,162.2,162.19,88.04]
[1754250298178,9.3120895,162.2,162.19,87.84]
[1754250298410,0.7,162.23,162.19,87.84]
[1754250298597,9.3120895,162.2,162.19,88.04]
[1754250298808,26.0,162.26,162.19,88.04]
[1754250298979,0.7,162.3,162.2,10.12861231]
[1754250299306,9.3120895,162.26,162.21,9.5120895]
[1754250299471,9.3120895,162.23,162.22,0.6164468]
[1754250299670,0.7,162.26,162.22,43.5]
[1754250299901,9.3120895,162.23,162.22,44.1164468]
[1754250300177,26.09677347,162.3,162.22,44.1164468]
[1754250300178,9.3120895,162.25,162.22,44.3164468]
[1754250300378,9.3120895,162.25,162.22,44.1164468]
[1754250300584,9.3120895,162.25,162.23,0.2]
[1754250300903,9.3120895,162.25,162.24,0.8163708]
[1754250301107,26.79677347,162.3,162.24,0.8163708]
[1754250301271,9.3120895,162.27,162.25,43.5]
[1754250301476,9.3120895,162.26,162.25,43.5]
[1754250301690,9.3120895,162.26,162.25,44.11633281]
[1754250302102,9.3120895,162.26,162.25,44.31633281]
[1754250302292,9.3120895,162.27,162.25,44.31633281]
[1754250302681,9.3120895,162.27,162.25,43.7]
[1754250303279,9.3120895,162.26,162.25,43.7]
[1754250303512,9.3120895,162.26,162.25,43.5]
[1754250306585,0.7,162.28,162.25,43.5]
[1754250306894,43.48468397,162.32,162.26,0.2]
[1754250307094,9.3120895,162.27,162.26,0.2]
[1754250307393,9.3120895,162.27,162.25,44.11633281]
[1754250307719,9.3120895,162.27,162.25,44.31633281]
[1754250308093,9.3120895,162.27,162.25,44.11633281]
[1754250308400,9.3120895,162.27,162.25,43.5]
[1754250312216,9.3120895,162.29,162.26,0.81629483]
[1754250312641,10.0120895,162.28,162.27,43.46]
[1754250313294,9.3120895,162.28,162.27,43.46]
[1754250314709,26.66,162.32,162.27,43.46]
[1754250314905,9.3120895,162.29,162.28,0.61621888]
[1754250316115,9.3120895,162.31,162.28,0.81621888]
[1754250316324,9.3120895,162.3,162.28,0.81621888]
[1754250318331,9.3120895,162.31,162.28,0.81621888]
[1754250318699,9.3120895,162.31,162.28,0.61621888]
[1754250319245,9.3120895,162.3,162.28,0.61621888]
[1754250319624,9.9720895,162.3,162.28,0.61621888]
[1754250322666,9.9720895,162.29,162.25,26.0]
[1754250322845,9.9720895,162.28,162.26,43.99629483]
[1754250323027,9.3120895,162.29,162.26,43.99629483]
[1754250324946,9.9720895,162.29,162.26,43.99629483]
[1754250325245,0.66,162.28,162.26,43.99629483]
[1754250331760,0.66,162.3,162.26,43.99629483]
[1754250331934,9.9720895,162.29,162.26,43.99629483]
[1754250335863,0.66,162.28,162.26,43.99629483]
[1754250336166,9.3120895,162.29,162.26,43.99629483]
[1754250336355,9.9720895,162.29,162.26,43.99629483]
[1754250337348,0.66,162.28,162.26,43.99629483]
[1754250337692,9.3120895,162.29,162.26,43.99629483]
[1754250337966,9.9720895,162.29,162.26,43.99629483]
[1754250338262,0.66,162.28,162.27,43.32]
[1754250338966,9.9720895,162.28,162.27,43.32]
[1754250340875,9.9720895,162.29,162.27,43.32]
[1754250342468,9.3120895,162.28,162.27,43.32]
[1754250343170,9.9720895,162.28,162.27,43.32]
[1754250345481,9.9720895,162.28,162.26,0.61629483]
[1754250345657,35.9920895,162.27,162.24,0.06]
[1754250345861,9.3120895,162.21,162.2,0.06]
[1754250346073,9.3120895,162.21,162.2,43.36]
[1754250346274,9.9920895,162.21,162.2,43.36]
[1754250346947,14.60377964,162.21,162.2,43.36]
[1754250347154,14.60180574,162.21,162.2,43.36]
[1754250347711,14.60180574,162.21,162.2,0.06]
[1754250347989,14.60180574,162.21,162.2,43.36]
[1754250348969,23.91389524,162.21,162.2,0.06]
[1754250349295,16.78468397,162.2,162.16,43.3]
[1754250349493,9.3120895,162.17,162.16,43.3]
[1754250349789,9.3120895,162.17,162.14,43.3]
[1754250349790,14.59565131,162.17,162.14,43.3]
[1754250349963,9.3120895,162.15,162.14,43.3]
[1754250350168,9.9920895,162.15,162.14,43.3]
[1754250358802,9.3120895,162.15,162.14,43.3]
[1754250359301,9.9920895,162.15,162.14,43.3]
[1754250360902,9.3120895,162.15,162.14,43.56]
[1754250361276,0.68,162.21,162.14,52.8720895]
[1754250361488,9.3120895,162.18,162.15,0.87671292]
[1754250361681,9.3120895,162.18,162.13,0.32]
[1754250361682,9.3120895,162.16,162.13,0.32]
[1754250361886,9.3120895,162.16,162.14,43.32]
[1754250362292,9.3120895,162.16,162.14,43.93675095]
[1754250362605,9.3120895,162.16,162.14,44.19675095]
[1754250363199,9.3120895,162.16,162.14,43.93675095]
[1754250363389,9.3120895,162.15,162.13,0.06]
[1754250363595,9.3120895,162.2,162.14,43.32]
[1754250363905,0.68,162.19,162.14,43.32]
[1754250364796,9.3120895,162.15,162.14,43.32]
[1754250364996,9.9920895,162.15,162.14,43.32]
[1754250366798,0.68,162.15,162.14,43.32]
[1754250367109,9.9920895,162.15,162.14,43.32]
[1754250368811,26.0,162.23,162.14,52.8920895]
[1754250369112,9.3120895,162.18,162.15,0.26]
[1754250369612,9.3120895,162.19,162.15,0.87671292]
[1754250369799,9.3120895,162.18,162.15,0.87671292]
[1754250370107,9.3120895,162.18,162.16,0.26]
[1754250370312,0.68,162.2,162.17,43.32]
[1754250370611,9.3120895,162.18,162.17,43.32]
[1754250370994,9.9920895,162.18,162.17,43.32]
[1754250371199,0.68,162.18,162.17,43.32]
[1754250371393,9.9920895,162.18,162.17,43.32]
[1754250371800,9.9920895,162.18,162.13,0.06]
[1754250372018,9.3120895,162.16,162.14,43.32]
[1754250372397,9.9920895,162.16,162.14,43.32]
[1754250372907,9.3120895,162.16,162.14,43.32]
[1754250373109,0.20961027,162.15,162.14,43.32]
[1754250375252,0.20961027,162.15,162.14,52.8920895]
[1754250376235,9.3120895,162.19,162.14,52.8920895]
[1754250376532,9.3120895,162.18,162.15,0.87671292]
[1754250378428,9.3120895,162.18,162.15,0.61671292]
[1754250379423,9.9820895,162.18,162.15,0.61671292]
[1754250383608,0.67,162.17,162.15,0.61671292]
[1754250383817,9.9820895,162.17,162.13,0.67678899]
[1754250384018,0.67,162.16,162.14,43.32]
[1754250385011,9.3120895,162.17,162.14,43.32]
[1754250385332,9.3120895,162.15,162.14,43.32]
[1754250385511,0.67,162.15,162.14,43.32]
[1754250386926,9.3120895,162.16,162.14,43.32]
[1754250387231,0.67,162.15,162.14,43.32]
[1754250388399,9.9820895,162.15,162.14,43.32]
[1754250389009,0.67,162.15,162.14,43.32]
[1754250389429,9.3120895,162.16,162.14,43.32]
[1754250389614,9.9820895,162.16,162.14,43.32]
[1754250391024,9.9820895,162.16,162.13,0.67678899]
[1754250391229,9.9820895,162.16,162.15,43.32]
[1754250392002,9.9820895,162.16,162.13,0.67678899]
[1754250392202,0.67,162.18,162.14,43.58]
[1754250392408,0.03,162.2,162.15,10.18880242]
[1754250392629,0.03,162.2,162.16,0.26]
[1754250392930,0.03,162.2,162.17,43.93663686]
[1754250393431,9.3420895,162.2,162.17,43.93663686]
[1754250393634,0.67,162.19,162.17,43.93663686]
[1754250394633,10.0120895,162.2,162.17,43.93663686]
[1754250394804,9.3420895,162.2,162.17,44.19663686]
[1754250395003,0.03,162.2,162.17,44.19663686]
[1754250395206,0.03,162.2,162.17,43.93663686]
[1754250395814,9.9820895,162.19,162.17,43.93663686]
[1754250396031,0.67,162.18,162.17,43.93663686]
[1754250397843,9.3120895,162.18,162.17,43.93663686]
[1754250398338,9.3120895,162.18,162.17,0.61663686]
[1754250398538,9.3120895,162.18,162.17,43.32]
[1754250398539,14.60042224,162.18,162.17,43.32]
[1754250398837,14.60112981,162.18,162.17,43.32]
[1754250399606,14.60112981,162.18,162.13,0.67678899]
[1754250399810,9.3120895,162.15,162.14,43.32]
[1754250400621,9.3120895,162.16,162.14,43.32]
[1754250401546,9.3120895,162.16,162.15,43.32]
[1754250402413,9.9820895,162.17,162.15,43.32]
[1754250404042,0.7,162.19,162.15,43.32]
[1754250404348,9.3120895,162.17,162.15,43.32]
[1754250404643,10.0120895,162.16,162.15,43.32]
[1754250407452,0.7,162.16,162.15,43.32]
[1754250409424,0.7,162.16,162.13,0.67678899]
[1754250409640,0.7,162.16,162.15,43.32]
[1754250410338,0.7,162.18,162.15,43.32]
[1754250410543,14.63031228,162.17,162.15,43.32]
[1754250410732,10.0120895,162.17,162.15,43.32]
[1754250411138,0.03,162.2,162.15,43.32]
[1754250411342,4.6183172,162.19,162.16,0.87667488]
[1754250411530,4.6183172,162.18,162.17,0.26]
[1754250411728,4.6183172,162.18,162.17,43.32]
[1754250411929,5.3183172,162.18,162.17,43.32]
[1754250412339,14.6304067,162.18,162.14,0.61675095]
[1754250412541,14.63083594,162.17,162.15,43.32]
[1754250412809,10.0120895,162.17,162.15,43.32]
[1754250413055,9.3120895,162.18,162.15,43.58]
[1754250413220,9.3120895,162.19,162.15,43.58]
[1754250413424,4.61908276,162.18,162.15,43.58]
[1754250413620,10.0120895,162.19,162.15,43.58]
[1754250413856,4.61908279,162.18,162.15,52.8920895]
[1754250414025,0.03,162.2,162.16,10.18876438]
[1754250414426,0.03,162.2,162.17,0.26]
[1754250414650,0.03,162.2,162.18,53.48868834]
[1754250415953,0.03,162.2,162.18,44.17659884]
[1754250416153,0.03,162.2,162.18,53.48868834]
[1754250416554,0.03,162.2,162.19,9.5720895]
[1754250416960,0.03,162.2,162.19,52.35677347]
[1754250417181,0.03,162.2,162.19,62.35677347]
[1754250418234,0.03,162.3,162.23,16.78468397]
[1754250418235,0.73,162.3,162.23,16.78468397]
[1754250418538,0.73,162.3,162.26,9.3120895]
[1754250418862,0.73,162.3,162.27,43.91625685]
[1754250419062,0.7,162.29,162.27,43.91625685]
[1754250419860,0.7,162.29,162.27,53.22834635]
[1754250420034,0.7,162.29,162.27,43.91625685]
[1754250420235,0.7,162.28,162.27,43.91625685]
[1754250420667,0.7,162.28,162.26,0.61629483]
[1754250420851,0.7,162.28,162.27,43.3]
[1754250422153,10.0420895,162.3,162.27,43.3]
[1754250422457,0.7,162.29,162.27,43.3]
[1754250422772,0.03,162.3,162.28,0.61621888]
[1754250422955,0.03,162.3,162.29,43.3]
[1754250423953,0.03,162.3,162.29,52.6120895]
[1754250424144,0.03,162.3,162.29,53.22827041]
[1754250424349,0.03,162.3,162.29,43.91618091]
[1754250425958,0.03,162.3,162.29,0.61618091]
[1754250426166,10.0420895,162.3,162.29,43.3]
[1754250426860,10.0420895,162.3,162.27,0.61625685]
[1754250427159,0.03,162.3,162.28,43.28]
[1754250427557,0.73,162.3,162.28,43.28]
[1754250430152,0.7,162.29,162.28,43.28]
[1754250434758,0.03,162.3,162.28,43.28]
[1754250435161,0.71,162.29,162.28,43.28]
[1754250435987,10.0220895,162.29,162.28,43.28]
[1754250436191,0.71,162.29,162.28,43.28]
[1754250437178,10.0220895,162.29,162.25,0.61633281]
[1754250437389,9.3120895,162.27,162.22,35.3120895]
[1754250437552,9.3120895,162.28,162.23,53.4684983]
[1754250437757,10.0220895,162.28,162.24,0.26]
[1754250437966,10.0220895,162.28,162.25,43.28]
[1754250438186,0.71,162.27,162.25,43.28]
[1754250438394,9.3120895,162.28,162.25,43.28]
[1754250438685,0.71,162.26,162.23,0.6164088]
[1754250438895,0.71,162.26,162.24,43.28]
[1754250439382,10.0220895,162.25,162.19,9.6320895]
[1754250439593,10.0220895,162.25,162.21,9.3120895]
[1754250439763,10.0220895,162.25,162.2,52.5920895]
[1754250439964,10.0220895,162.25,162.21,0.26]
[1754250440292,10.0220895,162.25,162.22,43.28]
[1754250441588,0.71,162.24,162.22,43.28]
[1754250442274,9.3120895,162.25,162.22,43.28]
[1754250442593,10.0220895,162.25,162.22,43.28]
[1754250442968,0.74,162.3,162.24,9.3120895]
[1754250443280,0.74,162.3,162.25,53.46842231]
[1754250443465,10.0520895,162.3,162.25,53.46842231]
[1754250443663,0.71,162.29,162.25,53.46842231]
[1754250444896,10.0220895,162.29,162.25,43.89633281]
[1754250445468,9.3120895,162.27,162.22,0.6164468]
[1754250445765,9.3120895,162.27,162.23,43.28]
[1754250445970,10.0220895,162.27,162.23,43.28]
[1754250446276,10.0220895,162.27,162.23,43.54]
[1754250448390,9.3120895,162.26,162.22,0.6164468]
[1754250448576,10.0220895,162.26,162.23,69.28]
[1754250450098,0.71,162.26,162.23,69.28]
[1754250450273,9.3120895,162.27,162.24,0.6163708]
[1754250450793,9.3120895,162.25,162.19,10.082089]
[1754250450993,9.3120895,162.21,162.2,43.28]
[1754250451295,10.0220895,162.21,162.2,43.28]
[1754250452364,10.0220895,162.21,162.19,0.06]
[1754250452581,9.3120895,162.2,162.19,0.06]
[1754250452797,9.3120895,162.2,162.19,43.34]
[1754250453191,10.0220895,162.21,162.19,43.34]
[1754250456293,10.0220895,162.21,162.2,43.28]
[1754250456792,9.3120895,162.23,162.2,43.54]
[1754250457694,0.71,162.28,162.22,35.3120895]
[1754250457882,10.0220895,162.28,162.23,53.4684983]
[1754250459189,10.0520895,162.3,162.25,9.3120895]
[1754250459374,9.3120895,162.28,162.25,26.0]
[1754250459576,0.71,162.27,162.26,43.28]
[1754250461006,9.3120895,162.28,162.26,43.28]
[1754250461377,10.0220895,162.29,162.26,43.28]
[1754250461772,0.71,162.28,162.26,43.28]
[1754250462009,0.03,162.3,162.26,43.28]
[1754250462195,0.71,162.29,162.26,43.28]
[1754250462383,10.0520895,162.3,162.27,0.61625685]
[1754250462574,9.3420895,162.3,162.27,0.61625685]
[1754250463606,0.74,162.3,162.27,0.61625685]
[1754250464478,10.0520895,162.3,162.27,0.61625685]
[1754250464898,0.74,162.3,162.27,0.61625685]
[1754250465404,10.0520895,162.3,162.27,0.61625685]
[1754250467491,0.74,162.3,162.27,0.61625685]
[1754250468812,0.03,162.3,162.28,9.5720895]
[1754250468984,0.03,162.3,162.29,43.87618091]
[1754250469188,0.03,162.3,162.29,53.18827041]
[1754250469402,0.03,162.3,162.29,43.87618091]
[1754250470007,0.03,162.3,162.29,0.61618091]
[1754250470200,0.03,162.3,162.29,43.26]
[1754250477822,0.03,162.3,162.28,9.92830838]
[1754250478016,0.03,162.3,162.29,43.26]
[1754250478696,0.75,162.3,162.28,0.61621888]
[1754250478910,0.75,162.3,162.29,43.26]
[1754250480032,10.0620895,162.3,162.24,9.3120895]
[1754250480329,10.0320895,162.29,162.26,0.61629483]
[1754250480514,0.72,162.29,162.27,43.26]
[1754250481388,0.03,162.3,162.27,43.26]
[1754250481590,0.75,162.3,162.27,43.26]
[1754250481796,0.03,162.3,162.27,43.26]
[1754250482004,0.72,162.29,162.27,43.26]
[1754250482199,0.72,162.28,162.27,43.26]
[1754250482517,0.72,162.28,162.26,0.61629483]
[1754250482894,0.72,162.28,162.27,43.26]
[1754250483096,0.72,162.28,162.26,0.61629483]
[1754250483295,0.72,162.28,162.27,43.26]
[1754250483494,0.72,162.28,162.26,0.61629483]
[1754250483920,0.72,162.28,162.27,43.26]
[1754250484626,0.72,162.28,162.26,0.61629483]
[1754250485124,0.72,162.28,162.27,43.26]
[1754250485498,0.72,162.28,162.26,0.61629483]
[1754250485706,9.3420895,162.3,162.27,43.26]
[1754250486324,0.72,162.29,162.27,43.26]
[1754250488502,9.3420895,162.3,162.27,43.26]
[1754250488698,0.72,162.28,162.27,43.26]
[1754250490025,0.72,162.29,162.27,43.26]
[1754250492245,0.75,162.29,162.27,43.26]
[1754250498127,0.03,162.29,162.27,43.26]
[1754250500554,0.69,162.28,162.27,43.26]
[1754250501054,0.72,162.29,162.27,43.26]
[1754250501551,0.72,162.29,162.28,43.26]
[1754250502309,0.03,162.29,162.28,43.26]
[1754250505447,0.03,162.29,162.28,52.8320895]
[1754250505942,0.03,162.29,162.28,52.5720895]
[1754250506119,0.03,162.29,162.28,53.44830838]
[1754250506715,0.03,162.29,162.28,53.18830838]
[1754250506946,0.03,162.29,162.28,43.87621888]
[1754250508138,0.72,162.29,162.28,69.85621888]
[1754250508451,0.03,162.29,162.28,69.85621888]
[1754250508835,0.03,162.29,162.28,79.42830838]
[1754250509011,0.03,162.29,162.28,96.21299235]
[1754250511016,0.03,162.29,162.28,52.97299235]
[1754250511346,0.03,162.29,162.28,95.95299235]
[1754250512234,0.03,162.29,162.28,69.85621888]
[1754250513022,0.03,162.29,162.28,79.42830838]
[1754250513227,0.03,162.29,162.28,96.21299235]
[1754250517431,0.03,162.29,162.28,70.21299235]
[1754250518441,0.03,162.29,162.28,76.37518115]
[1754250518625,0.03,162.29,162.28,235.77518115]
[1754250518956,0.03,162.29,162.28,235.15896227]
[1754250519444,0.03,162.3,162.29,26.78468397]
[1754250519652,0.03,162.3,162.29,45.66886297]
[1754250519848,0.03,162.3,162.29,64.82504388]
[1754250520023,0.03,162.3,162.29,46.28504388]
[1754250521429,0.03,162.31,162.3,26.78468397]
[1754250521628,0.03,162.37,162.3,26.78468397]
[1754250521629,0.03,162.37,162.34,16.78468397]
[1754250521838,0.03,162.37,162.34,69.93276459]
[1754250522050,0.03,162.37,162.34,70.19276459]
[1754250522256,0.03,162.37,162.34,232.06167159]
[1754250522455,0.03,162.37,162.34,231.44568047]
[1754250522638,0.03,162.37,162.36,52.78468397]
[1754250522833,0.03,162.37,162.36,105.93268872]
[1754250523072,0.03,162.37,162.36,106.19268872]
[1754250523454,0.03,162.37,162.36,112.35184122]
[1754250523634,0.03,162.37,162.36,106.19268872]
[1754250523822,0.03,162.37,162.36,105.93268872]
[1754250524357,0.03,162.37,162.36,112.35184122]
[1754250524547,0.03,162.37,162.36,105.93268872]
[1754250529556,0.03,162.37,162.36,115.27477872]
[1754250530752,0.03,162.37,162.36,72.05477872]
[1754250530962,0.7,162.37,162.36,115.25477872]
[1754250531157,0.7,162.37,162.36,105.91268872]
[1754250531462,0.03,162.37,162.36,62.71268872]
[1754250531653,0.03,162.37,162.36,255.31268872]
[1754250531847,0.03,162.37,162.36,254.69677347]
[1754250532563,0.7,162.37,162.36,149.4]
[1754250532734,0.7,162.37,162.36,201.9120895]
[1754250533074,0.7,162.37,162.36,227.9120895]
[1754250535759,0.7,162.37,162.36,69.2]
[1754250535943,0.7,162.37,162.36,26.61591525]
[1754250536142,0.7,162.37,162.36,69.81591525]
[1754250543313,10.0120895,162.37,162.35,0.06]
[1754250543587,9.3120895,162.36,162.33,0.06]
[1754250543795,0.67,162.36,162.34,43.2]
[1754250543987,9.3120895,162.35,162.34,43.2]
[1754250544297,9.9820895,162.35,162.34,43.2]
[1754250545561,0.67,162.35,162.34,43.2]
[1754250546065,9.9820895,162.35,162.34,43.2]
[1754250550182,14.57343063,162.35,162.34,43.2]
[1754250551066,9.9820895,162.35,162.34,43.2]
[1754250554693,14.57365417,162.35,162.34,43.2]
[1754250556288,9.9820895,162.35,162.34,43.2]
[1754250556678,14.57228066,162.35,162.32,0.06]
[1754250556884,9.3120895,162.33,162.32,43.28]
[1754250557178,16.78468397,162.32,162.26,44.42]
[1754250557379,16.78468397,162.32,162.27,43.22]
[1754250557583,0.7,162.31,162.27,43.22]
[1754250558389,16.78468397,162.3,162.27,43.22]
[1754250558592,9.3120895,162.28,162.27,43.22]
[1754250558778,10.0120895,162.28,162.27,43.22]
[1754250560480,10.0120895,162.28,162.24,43.22]
[1754250560686,9.3120895,162.25,162.24,43.22]
[1754250560902,10.0120895,162.25,162.24,43.22]
[1754250563193,10.0120895,162.25,162.21,43.22]
[1754250563485,9.3120895,162.22,162.21,43.22]
[1754250565900,0.7,162.24,162.21,43.22]
[1754250566119,9.3120895,162.22,162.21,43.22]
[1754250567610,9.3120895,162.23,162.21,43.54]
[1754250567816,9.3120895,162.23,162.22,0.32]
[1754250569429,9.3120895,162.23,162.21,43.22]
[1754250569590,9.3120895,162.22,162.21,43.54]
[1754250569989,9.3120895,162.23,162.21,43.54]
[1754250570228,9.3120895,162.23,162.21,43.22]
[1754250570393,9.3120895,162.23,162.21,43.54]
[1754250571921,9.3120895,162.23,162.21,43.22]
[1754250573696,9.3120895,162.23,162.21,43.54]
[1754250574518,9.3120895,162.23,162.21,43.22]
[1754250575322,9.3120895,162.22,162.21,43.22]
[1754250576521,10.0120895,162.22,162.21,43.22]
[1754250577120,9.3120895,162.22,162.21,43.22]
[1754250580510,10.0120895,162.22,162.21,43.22]
[1754250581094,10.0120895,162.22,162.19,26.06]
[1754250581294,16.78468397,162.28,162.21,43.24]
[1754250581627,16.78468397,162.26,162.21,43.24]
[1754250581814,0.7,162.25,162.21,43.24]
[1754250582429,9.3120895,162.22,162.21,43.24]
[1754250582804,10.0120895,162.22,162.21,43.24]
[1754250584743,0.7,162.22,162.21,43.24]
[1754250584931,10.0120895,162.22,162.21,43.24]
[1754250589932,9.3120895,162.22,162.21,43.24]
[1754250590248,0.68,162.23,162.21,43.24]
[1754250590445,9.3120895,162.22,162.21,43.24]
[1754250591045,9.9920895,162.22,162.21,43.24]
[1754250591540,9.3120895,162.22,162.21,43.24]
[1754250593961,9.9920895,162.22,162.21,43.24]
[1754250595138,9.3120895,162.22,162.21,43.24]
[1754250595354,9.3120895,162.23,162.21,43.56]
[1754250595751,9.3120895,162.23,162.21,43.24]
[1754250596631,5.96966641,162.23,162.21,43.24]
[1754250597732,6.64966641,162.24,162.21,43.24]
[1754250598452,5.96966641,162.26,162.22,0.32]
[1754250598633,4.60989196,162.25,162.23,0.32]